[Event "Titled Tuesday Blitz December 7 2021"]
[White "Manafov, Vugar"]
[Black "Savchenko, Boris"]
[WhiteFideId "13410814"]
[BlackFideId "4147332"]
[WhiteElo "2908"]
[BlackElo "2854"]
[Result "1-0"]
[Round "08"]
[TimeControl "180+1"]
[Date "2021.12.07"]
[WhiteClock "0:01:29"]
[BlackClock "0:01:10"]

1. d4 {[%clk 0:03:00]}  Nf6 {[%clk 0:03:00]} 2. c4 {[%clk 0:03:00]}  g6 {[%clk 0:02:59]} 3. Nc3 {[%clk 0:03:00]}  d5 {[%clk 0:02:59]} 4. cxd5 {[%clk 0:03:01]}  Nxd5 {[%clk 0:03:00]} 5. e4 {[%clk 0:03:02]}  Nxc3 {[%clk 0:03:01]} 6. bxc3 {[%clk 0:03:03]}  Bg7 {[%clk 0:03:01]} 7. Bc4 {[%clk 0:03:04]}  c5 {[%clk 0:03:01]} 8. Be3 {[%clk 0:03:04]}  Qa5 {[%clk 0:02:59]} 9. Ne2 {[%clk 0:03:01]}  cxd4 {[%clk 0:02:58]} 10. Bxd4 {[%clk 0:03:00]}  Bxd4 {[%clk 0:02:54]} 11. Qxd4 {[%clk 0:02:59]}  O-O {[%clk 0:02:54]} 12. h4 {[%clk 0:02:49]}  Nc6 {[%clk 0:02:52]} 13. Qe3 {[%clk 0:02:49]}  Ne5 {[%clk 0:02:51]} 14. Bb3 {[%clk 0:02:48]}  Ng4 {[%clk 0:02:47]} 15. Qg3 {[%clk 0:02:42]}  Nf6 {[%clk 0:02:38]} 16. f3 {[%clk 0:02:35]}  b6 {[%clk 0:02:30]} 17. h5 {[%clk 0:02:27]}  Nxh5 {[%clk 0:02:29]} 18. Qh2 {[%clk 0:02:23]}  e5 {[%clk 0:02:00]} 19. g4 {[%clk 0:02:21]}  Nf6 {[%clk 0:01:59]} 20. Qh6 {[%clk 0:02:13]}  Be6 {[%clk 0:01:40]} 21. Bxe6 {[%clk 0:01:48]}  fxe6 {[%clk 0:01:40]} 22. g5 {[%clk 0:01:44]}  Nh5 {[%clk 0:01:24]} 23. Rxh5 {[%clk 0:01:44]}  gxh5 {[%clk 0:01:25]} 24. g6 {[%clk 0:01:41]}  hxg6 {[%clk 0:01:26]} 25. Qxg6+ {[%clk 0:01:41]}  Kh8 {[%clk 0:01:27]} 26. Qxh5+ {[%clk 0:01:39]}  Kg7 {[%clk 0:01:27]} 27. O-O-O {[%clk 0:01:31]}  Qc5 {[%clk 0:01:10]} 28. Rd7+ {[%clk 0:01:29]} 1-0


[Site "https://www.chess.com"]

[Event "Titled Tuesday Blitz December 7 2021"]
[White "Manukian, Artak"]
[Black "Kepeshchuk, Mykhaylo"]
[WhiteFideId "13301373"]
[BlackFideId "14113139"]
[WhiteElo "2409"]
[BlackElo "2279"]
[Result "0-1"]
[Round "08"]
[TimeControl "180+1"]
[Date "2021.12.07"]
[WhiteClock "0:01:38"]
[BlackClock "0:00:57"]

1. e4 {[%clk 0:03:00]}  c5 {[%clk 0:02:59]} 2. Nf3 {[%clk 0:03:00]}  d6 {[%clk 0:03:00]} 3. Bb5+ {[%clk 0:02:59]}  Bd7 {[%clk 0:02:58]} 4. Bxd7+ {[%clk 0:02:58]}  Qxd7 {[%clk 0:02:59]} 5. c4 {[%clk 0:02:57]}  Nc6 {[%clk 0:02:59]} 6. Nc3 {[%clk 0:02:57]}  Nf6 {[%clk 0:02:59]} 7. d4 {[%clk 0:02:54]}  cxd4 {[%clk 0:03:00]} 8. Nxd4 {[%clk 0:02:55]}  Nxd4 {[%clk 0:02:59]} 9. Qxd4 {[%clk 0:02:54]}  g6 {[%clk 0:03:00]} 10. Bg5 {[%clk 0:02:49]}  Bg7 {[%clk 0:03:00]} 11. Qd2 {[%clk 0:02:48]}  Qe6 {[%clk 0:02:37]} 12. O-O {[%clk 0:02:42]}  Qxc4 {[%clk 0:02:08]} 13. Rac1 {[%clk 0:02:27]}  O-O {[%clk 0:02:06]} 14. Nd5 {[%clk 0:02:23]}  Qxe4 {[%clk 0:02:06]} 15. Bxf6 {[%clk 0:02:16]}  Bxf6 {[%clk 0:02:05]} 16. Rfe1 {[%clk 0:02:16]}  Qa4 {[%clk 0:01:21]} 17. Nxf6+ {[%clk 0:02:13]}  exf6 {[%clk 0:01:18]} 18. Qxd6 {[%clk 0:02:10]}  Kg7 {[%clk 0:01:09]} 19. a3 {[%clk 0:02:02]}  Rfe8 {[%clk 0:01:03]} 20. Qg3 {[%clk 0:01:53]}  Rxe1+ {[%clk 0:00:59]} 21. Rxe1 {[%clk 0:01:52]}  Re8 {[%clk 0:00:59]} 22. Rxe8 {[%clk 0:01:38]}  Qd1+ {[%clk 0:00:57]} 0-1


[Site "https://www.chess.com"]

[Event "Titled Tuesday Blitz December 7 2021"]
[White "Navalgund, Niranjan"]
[Black "Kadam, Om Manish"]
[WhiteFideId "5030854"]
[BlackFideId "45076294"]
[WhiteElo "2457"]
[BlackElo "2611"]
[Result "0-1"]
[Round "08"]
[TimeControl "180+1"]
[Date "2021.12.07"]
[WhiteClock "0:01:09"]
[BlackClock "0:01:21"]

1. d4 {[%clk 0:02:56]}  Nf6 {[%clk 0:03:00]} 2. Nf3 {[%clk 0:02:56]}  g6 {[%clk 0:03:00]} 3. g3 {[%clk 0:02:54]}  Bg7 {[%clk 0:03:00]} 4. Bg2 {[%clk 0:02:55]}  O-O {[%clk 0:03:00]} 5. O-O {[%clk 0:02:56]}  d5 {[%clk 0:03:00]} 6. Ne5 {[%clk 0:02:56]}  c6 {[%clk 0:03:00]} 7. c4 {[%clk 0:02:55]}  Ng4 {[%clk 0:02:57]} 8. Nxg4 {[%clk 0:02:52]}  Bxg4 {[%clk 0:02:58]} 9. cxd5 {[%clk 0:02:53]}  cxd5 {[%clk 0:02:59]} 10. h3 {[%clk 0:02:53]}  Be6 {[%clk 0:02:57]} 11. Nc3 {[%clk 0:02:54]}  Nc6 {[%clk 0:02:57]} 12. e3 {[%clk 0:02:54]}  Qd7 {[%clk 0:02:56]} 13. Kh2 {[%clk 0:02:52]}  f6 {[%clk 0:02:54]} 14. Qb3 {[%clk 0:02:51]}  Rfd8 {[%clk 0:02:54]} 15. Bd2 {[%clk 0:02:45]}  Bf7 {[%clk 0:02:53]} 16. Rfd1 {[%clk 0:02:40]}  Rac8 {[%clk 0:02:52]} 17. Be1 {[%clk 0:02:40]}  a6 {[%clk 0:02:49]} 18. Na4 {[%clk 0:02:40]}  Qd6 {[%clk 0:02:37]} 19. Qxb7 {[%clk 0:02:35]}  Rb8 {[%clk 0:02:31]} 20. Qxa6 {[%clk 0:02:35]}  Ra8 {[%clk 0:02:31]} 21. Qb5 {[%clk 0:02:23]}  Rdb8 {[%clk 0:02:30]} 22. Nb6 {[%clk 0:02:22]}  Na7 {[%clk 0:02:26]} 23. Qa5 {[%clk 0:02:04]}  Qxb6 {[%clk 0:02:21]} 24. Bxd5 {[%clk 0:01:59]}  Qxa5 {[%clk 0:02:17]} 25. Bxf7+ {[%clk 0:01:59]}  Kxf7 {[%clk 0:02:18]} 26. Bxa5 {[%clk 0:02:00]}  Rxb2 {[%clk 0:02:18]} 27. Rd2 {[%clk 0:02:00]}  Rxd2 {[%clk 0:02:11]} 28. Bxd2 {[%clk 0:02:01]}  Nb5 {[%clk 0:02:11]} 29. a4 {[%clk 0:01:59]}  Nd6 {[%clk 0:02:11]} 30. Kg2 {[%clk 0:01:55]}  f5 {[%clk 0:02:09]} 31. a5 {[%clk 0:01:52]}  Nc4 {[%clk 0:02:09]} 32. Bc3 {[%clk 0:01:52]}  e5 {[%clk 0:02:08]} 33. Ra4 {[%clk 0:01:47]}  exd4 {[%clk 0:01:50]} 34. exd4 {[%clk 0:01:46]}  Nd6 {[%clk 0:01:49]} 35. a6 {[%clk 0:01:42]}  Bf8 {[%clk 0:01:43]} 36. d5 {[%clk 0:01:40]}  Ne4 {[%clk 0:01:42]} 37. Be5 {[%clk 0:01:31]}  Nc5 {[%clk 0:01:40]} 38. Rc4 {[%clk 0:01:29]}  Rxa6 {[%clk 0:01:40]} 39. d6 {[%clk 0:01:30]}  Nd7 {[%clk 0:01:40]} 40. Rc7 {[%clk 0:01:26]}  Ke6 {[%clk 0:01:40]} 41. Bf4 {[%clk 0:01:27]}  Bxd6 {[%clk 0:01:40]} 42. Bxd6 {[%clk 0:01:27]}  Rxd6 {[%clk 0:01:40]} 43. Rc8 {[%clk 0:01:27]}  Nf6 {[%clk 0:01:40]} 44. Kf3 {[%clk 0:01:26]}  Rd2 {[%clk 0:01:40]} 45. g4 {[%clk 0:01:26]}  Ne4 {[%clk 0:01:39]} 46. gxf5+ {[%clk 0:01:26]}  gxf5 {[%clk 0:01:39]} 47. Rh8 {[%clk 0:01:23]}  Rxf2+ {[%clk 0:01:39]} 48. Ke3 {[%clk 0:01:23]}  Ke5 {[%clk 0:01:32]} 49. Re8+ {[%clk 0:01:19]}  Kd5 {[%clk 0:01:30]} 50. Rxe4 {[%clk 0:01:04]}  fxe4 {[%clk 0:01:29]} 51. Kxf2 {[%clk 0:01:05]}  h5 {[%clk 0:01:23]} 52. h4 {[%clk 0:01:04]}  Ke5 {[%clk 0:01:23]} 53. Ke3 {[%clk 0:01:05]}  Kf5 {[%clk 0:01:23]} 54. Ke2 {[%clk 0:01:05]}  Kg4 {[%clk 0:01:22]} 55. Ke3 {[%clk 0:01:06]}  Kxh4 {[%clk 0:01:22]} 56. Kf4 {[%clk 0:01:07]}  Kh3 {[%clk 0:01:20]} 57. Kxe4 {[%clk 0:01:07]}  Kg3 {[%clk 0:01:20]} 58. Ke3 {[%clk 0:01:07]}  h4 {[%clk 0:01:20]} 59. Ke2 {[%clk 0:01:08]}  h3 {[%clk 0:01:20]} 60. Kf1 {[%clk 0:01:09]}  h2 {[%clk 0:01:21]} 0-1


[Site "https://www.chess.com"]

[Event "Titled Tuesday Blitz December 7 2021"]
[White "Peng, Li Min"]
[Black "Perrine, Dalton"]
[WhiteFideId "14112620"]
[BlackFideId "2048434"]
[WhiteElo "2645"]
[BlackElo "2447"]
[Result "1-0"]
[Round "08"]
[TimeControl "180+1"]
[Date "2021.12.07"]
[WhiteClock "0:00:41"]
[BlackClock "0:00:02"]

1. d4 {[%clk 0:02:59]}  Nf6 {[%clk 0:02:58]} 2. c4 {[%clk 0:02:59]}  e6 {[%clk 0:02:57]} 3. Nc3 {[%clk 0:02:59]}  Bb4 {[%clk 0:02:58]} 4. e3 {[%clk 0:03:00]}  O-O {[%clk 0:02:57]} 5. Bd2 {[%clk 0:03:00]}  d5 {[%clk 0:02:56]} 6. Nf3 {[%clk 0:03:00]}  b6 {[%clk 0:02:44]} 7. cxd5 {[%clk 0:02:59]}  exd5 {[%clk 0:02:43]} 8. Bd3 {[%clk 0:02:59]}  Bd6 {[%clk 0:02:34]} 9. O-O {[%clk 0:02:49]}  Re8 {[%clk 0:02:30]} 10. Qb1 {[%clk 0:02:45]}  Bb7 {[%clk 0:02:22]} 11. b4 {[%clk 0:02:44]}  Ne4 {[%clk 0:02:05]} 12. Rc1 {[%clk 0:02:44]}  Re6 {[%clk 0:01:38]} 13. Be1 {[%clk 0:02:27]}  a6 {[%clk 0:01:21]} 14. b5 {[%clk 0:02:21]}  a5 {[%clk 0:01:20]} 15. Ne2 {[%clk 0:02:19]}  Rh6 {[%clk 0:01:12]} 16. Ng3 {[%clk 0:02:15]}  Re6 {[%clk 0:00:47]} 17. Qb2 {[%clk 0:02:08]}  Nd7 {[%clk 0:00:43]} 18. a4 {[%clk 0:02:06]}  g6 {[%clk 0:00:39]} 19. Ne2 {[%clk 0:01:51]}  Qf6 {[%clk 0:00:30]} 20. Ng3 {[%clk 0:01:31]}  h5 {[%clk 0:00:28]} 21. Be2 {[%clk 0:01:23]}  h4 {[%clk 0:00:23]} 22. Nxe4 {[%clk 0:01:23]}  dxe4 {[%clk 0:00:19]} 23. Nd2 {[%clk 0:01:23]}  Qg5 {[%clk 0:00:12]} 24. h3 {[%clk 0:01:22]}  Nf6 {[%clk 0:00:09]} 25. Nc4 {[%clk 0:01:21]}  Bf8 {[%clk 0:00:08]} 26. Ne5 {[%clk 0:01:20]}  Nd5 {[%clk 0:00:07]} 27. Qb3 {[%clk 0:01:15]}  Rd8 {[%clk 0:00:06]} 28. Bc4 {[%clk 0:01:12]}  Qf6 {[%clk 0:00:02]} 29. Ra2 {[%clk 0:01:06]}  g5 {[%clk 0:00:02]} 30. Ng4 {[%clk 0:01:06]}  Qf5 {[%clk 0:00:02]} 31. Rac2 {[%clk 0:01:02]}  Bd6 {[%clk 0:00:02]} 32. Bc3 {[%clk 0:00:45]}  Qg6 {[%clk 0:00:02]} 33. Ne5 {[%clk 0:00:40]}  Bxe5 {[%clk 0:00:02]} 34. dxe5 {[%clk 0:00:41]} 1-0


[Site "https://www.chess.com"]

[Event "Titled Tuesday Blitz December 7 2021"]
[White "Preotu, Razvan"]
[Black "Terry, Renato"]
[WhiteFideId "2613280"]
[BlackFideId "3803457"]
[WhiteElo "2791"]
[BlackElo "2927"]
[Result "1/2-1/2"]
[Round "08"]
[TimeControl "180+1"]
[Date "2021.12.07"]
[WhiteClock "0:00:09"]
[BlackClock "0:00:02"]

1. e4 {[%clk 0:03:00]}  g6 {[%clk 0:03:00]} 2. d4 {[%clk 0:03:00]}  Bg7 {[%clk 0:03:01]} 3. Nc3 {[%clk 0:03:01]}  c6 {[%clk 0:03:01]} 4. Be3 {[%clk 0:02:59]}  d5 {[%clk 0:03:01]} 5. e5 {[%clk 0:02:58]}  Nh6 {[%clk 0:03:01]} 6. Qd2 {[%clk 0:02:56]}  Nf5 {[%clk 0:03:01]} 7. Bf4 {[%clk 0:02:54]}  f6 {[%clk 0:03:00]} 8. Nf3 {[%clk 0:02:54]}  g5 {[%clk 0:02:59]} 9. Bg3 {[%clk 0:02:36]}  h5 {[%clk 0:02:59]} 10. h3 {[%clk 0:02:13]}  g4 {[%clk 0:01:49]} 11. hxg4 {[%clk 0:02:11]}  hxg4 {[%clk 0:01:50]} 12. Rxh8+ {[%clk 0:02:10]}  Bxh8 {[%clk 0:01:51]} 13. Nh4 {[%clk 0:02:09]}  Nxg3 {[%clk 0:01:51]} 14. Qh6 {[%clk 0:02:01]}  Kd7 {[%clk 0:01:48]} 15. fxg3 {[%clk 0:01:51]}  fxe5 {[%clk 0:01:48]} 16. Ng6 {[%clk 0:01:50]}  exd4 {[%clk 0:01:44]} 17. Nb5 {[%clk 0:00:56]}  Bf6 {[%clk 0:01:15]} 18. Nf8+ {[%clk 0:00:55]}  Ke8 {[%clk 0:01:16]} 19. Bd3 {[%clk 0:00:55]}  Qa5+ {[%clk 0:01:04]} 20. Kf1 {[%clk 0:00:52]}  cxb5 {[%clk 0:01:01]} 21. Re1 {[%clk 0:00:41]}  Nc6 {[%clk 0:01:00]} 22. Nh7 {[%clk 0:00:33]}  Be5 {[%clk 0:00:49]} 23. Ng5 {[%clk 0:00:25]}  Qd2 {[%clk 0:00:34]} 24. Rxe5 {[%clk 0:00:17]}  Nxe5 {[%clk 0:00:30]} 25. Qh8+ {[%clk 0:00:18]}  Kd7 {[%clk 0:00:30]} 26. Qxe5 {[%clk 0:00:18]}  Qd1+ {[%clk 0:00:27]} 27. Kf2 {[%clk 0:00:17]}  Qd2+ {[%clk 0:00:27]} 28. Kf1 {[%clk 0:00:17]}  Kc6 {[%clk 0:00:21]} 29. Ne6 {[%clk 0:00:14]}  Qc1+ {[%clk 0:00:21]} 30. Ke2 {[%clk 0:00:10]}  Qe3+ {[%clk 0:00:22]} 31. Qxe3 {[%clk 0:00:10]}  dxe3 {[%clk 0:00:23]} 32. Nd4+ {[%clk 0:00:10]}  Kc5 {[%clk 0:00:21]} 33. Nxb5 {[%clk 0:00:04]}  e5 {[%clk 0:00:19]} 34. a3 {[%clk 0:00:03]}  d4 {[%clk 0:00:18]} 35. b4+ {[%clk 0:00:03]}  Kb6 {[%clk 0:00:15]} 36. c4 {[%clk 0:00:04]}  Kc6 {[%clk 0:00:11]} 37. Be4+ {[%clk 0:00:03]}  Kd7 {[%clk 0:00:12]} 38. c5 {[%clk 0:00:04]}  a5 {[%clk 0:00:11]} 39. Nd6 {[%clk 0:00:03]}  axb4 {[%clk 0:00:12]} 40. axb4 {[%clk 0:00:04]}  Ra2+ {[%clk 0:00:11]} 41. Ke1 {[%clk 0:00:03]}  Kc7 {[%clk 0:00:10]} 42. b5 {[%clk 0:00:04]}  Ra1+ {[%clk 0:00:07]} 43. Ke2 {[%clk 0:00:04]}  Ra2+ {[%clk 0:00:08]} 44. Ke1 {[%clk 0:00:04]}  Rb2 {[%clk 0:00:05]} 45. b6+ {[%clk 0:00:04]}  Kb8 {[%clk 0:00:05]} 46. Nf7 {[%clk 0:00:02]}  Rb5 {[%clk 0:00:04]} 47. Nxe5 {[%clk 0:00:01]}  Rxc5 {[%clk 0:00:04]} 48. Nxg4 {[%clk 0:00:02]}  Rb5 {[%clk 0:00:04]} 49. Nf6 {[%clk 0:00:02]}  Rxb6 {[%clk 0:00:04]} 50. Nd5 {[%clk 0:00:03]}  Rd6 {[%clk 0:00:04]} 51. Nf4 {[%clk 0:00:03]}  Bd7 {[%clk 0:00:04]} 52. Ke2 {[%clk 0:00:03]}  Bb5+ {[%clk 0:00:04]} 53. Kf3 {[%clk 0:00:03]}  Bc6 {[%clk 0:00:05]} 54. Bxc6 {[%clk 0:00:02]}  bxc6 {[%clk 0:00:06]} 55. g4 {[%clk 0:00:03]}  c5 {[%clk 0:00:07]} 56. g5 {[%clk 0:00:02]}  c4 {[%clk 0:00:07]} 57. g6 {[%clk 0:00:03]}  c3 {[%clk 0:00:07]} 58. g7 {[%clk 0:00:03]}  Rd8 {[%clk 0:00:08]} 59. Ne6 {[%clk 0:00:03]}  Rg8 {[%clk 0:00:05]} 60. Nxd4 {[%clk 0:00:03]}  Rxg7 {[%clk 0:00:05]} 61. Kxe3 {[%clk 0:00:03]}  Rd7 {[%clk 0:00:02]} 62. Nc2 {[%clk 0:00:01]}  Rd2 {[%clk 0:00:02]} 63. Nb4 {[%clk 0:00:02]}  Kb7 {[%clk 0:00:02]} 64. g4 {[%clk 0:00:02]}  Kb6 {[%clk 0:00:02]} 65. g5 {[%clk 0:00:03]}  Kc5 {[%clk 0:00:02]} 66. Nd3+ {[%clk 0:00:03]}  Kc4 {[%clk 0:00:02]} 67. Ne5+ {[%clk 0:00:03]}  Kb3 {[%clk 0:00:02]} 68. Nf3 {[%clk 0:00:03]}  Rg2 {[%clk 0:00:02]} 69. Kf4 {[%clk 0:00:03]}  c2 {[%clk 0:00:02]} 70. Nd4+ {[%clk 0:00:03]}  Kc3 {[%clk 0:00:02]} 71. Nxc2 {[%clk 0:00:04]}  Kxc2 {[%clk 0:00:02]} 72. Kf5 {[%clk 0:00:05]}  Kd3 {[%clk 0:00:02]} 73. g6 {[%clk 0:00:05]}  Kd4 {[%clk 0:00:02]} 74. Kf6 {[%clk 0:00:05]}  Rf2+ {[%clk 0:00:03]} 75. Ke7 {[%clk 0:00:05]}  Re2+ {[%clk 0:00:03]} 76. Kf7 {[%clk 0:00:05]}  Rf2+ {[%clk 0:00:03]} 77. Ke7 {[%clk 0:00:06]}  Re2+ {[%clk 0:00:04]} 78. Kf7 {[%clk 0:00:06]}  Ke5 {[%clk 0:00:04]} 79. g7 {[%clk 0:00:06]}  Rf2+ {[%clk 0:00:04]} 80. Ke7 {[%clk 0:00:07]}  Rg2 {[%clk 0:00:05]} 81. Kf7 {[%clk 0:00:07]}  Rf2+ {[%clk 0:00:05]} 82. Ke7 {[%clk 0:00:08]}  Rg2 {[%clk 0:00:03]} 83. Kf7 {[%clk 0:00:08]}  Rxg7+ {[%clk 0:00:02]} 84. Kxg7 {[%clk 0:00:09]} 1/2-1/2


[Site "https://www.chess.com"]

[Event "Titled Tuesday Blitz December 7 2021"]
[White "Rasulov, Vugar"]
[Black "Narayanan, Srinath"]
[WhiteFideId "13402390"]
[BlackFideId "5018420"]
[WhiteElo "2887"]
[BlackElo "2706"]
[Result "1-0"]
[Round "08"]
[TimeControl "180+1"]
[Date "2021.12.07"]
[WhiteClock "0:00:27"]
[BlackClock "0:00:05"]

1. d4 {[%clk 0:03:00]}  Nf6 {[%clk 0:02:59]} 2. c4 {[%clk 0:03:01]}  e6 {[%clk 0:02:59]} 3. Nc3 {[%clk 0:03:02]}  Bb4 {[%clk 0:02:56]} 4. Bd2 {[%clk 0:03:02]}  O-O {[%clk 0:02:56]} 5. e3 {[%clk 0:03:02]}  d5 {[%clk 0:02:53]} 6. Nf3 {[%clk 0:03:02]}  b6 {[%clk 0:02:54]} 7. Be2 {[%clk 0:03:01]}  Ba6 {[%clk 0:02:50]} 8. O-O {[%clk 0:02:58]}  Bxc4 {[%clk 0:02:47]} 9. Bxc4 {[%clk 0:02:58]}  dxc4 {[%clk 0:02:48]} 10. Ne5 {[%clk 0:02:58]}  Bxc3 {[%clk 0:02:47]} 11. Bxc3 {[%clk 0:02:56]}  Nbd7 {[%clk 0:02:34]} 12. Nxc4 {[%clk 0:02:55]}  c5 {[%clk 0:02:35]} 13. Qf3 {[%clk 0:02:48]}  Nd5 {[%clk 0:02:27]} 14. Rfd1 {[%clk 0:02:46]}  Qe7 {[%clk 0:02:22]} 15. e4 {[%clk 0:02:36]}  Nxc3 {[%clk 0:02:22]} 16. bxc3 {[%clk 0:02:36]}  cxd4 {[%clk 0:02:19]} 17. cxd4 {[%clk 0:02:37]}  Rac8 {[%clk 0:02:20]} 18. Rac1 {[%clk 0:02:37]}  b5 {[%clk 0:02:04]} 19. Na5 {[%clk 0:02:29]}  Qd6 {[%clk 0:02:01]} 20. e5 {[%clk 0:02:24]}  Qb6 {[%clk 0:01:37]} 21. Nc6 {[%clk 0:02:21]}  Kh8 {[%clk 0:01:37]} 22. d5 {[%clk 0:02:12]}  exd5 {[%clk 0:00:58]} 23. Qxd5 {[%clk 0:02:13]}  Nb8 {[%clk 0:00:49]} 24. Nxb8 {[%clk 0:02:02]}  Qxb8 {[%clk 0:00:48]} 25. Rxc8 {[%clk 0:01:59]}  Rxc8 {[%clk 0:00:45]} 26. h4 {[%clk 0:01:54]}  h6 {[%clk 0:00:38]} 27. Qd7 {[%clk 0:01:49]}  Rc7 {[%clk 0:00:31]} 28. Qd6 {[%clk 0:01:46]}  Qc8 {[%clk 0:00:29]} 29. Rd3 {[%clk 0:01:38]}  Rc1+ {[%clk 0:00:25]} 30. Kh2 {[%clk 0:01:39]}  Qc4 {[%clk 0:00:24]} 31. Rd4 {[%clk 0:01:27]}  Qf1 {[%clk 0:00:18]} 32. Rf4 {[%clk 0:01:05]}  Qg1+ {[%clk 0:00:14]} 33. Kg3 {[%clk 0:01:05]}  Rc3+ {[%clk 0:00:14]} 34. f3 {[%clk 0:01:06]}  Qe1+ {[%clk 0:00:13]} 35. Kh2 {[%clk 0:01:06]}  Rc4 {[%clk 0:00:09]} 36. Rd4 {[%clk 0:00:34]}  Rxd4 {[%clk 0:00:07]} 37. Qxd4 {[%clk 0:00:35]}  b4 {[%clk 0:00:05]} 38. Kh3 {[%clk 0:00:30]}  a5 {[%clk 0:00:05]} 39. Qd8+ {[%clk 0:00:28]}  Kh7 {[%clk 0:00:06]} 40. Qxa5 {[%clk 0:00:29]}  Qh1+ {[%clk 0:00:06]} 41. Kg3 {[%clk 0:00:29]}  Qe1+ {[%clk 0:00:07]} 42. Kg4 {[%clk 0:00:29]}  Qd2 {[%clk 0:00:06]} 43. Kh3 {[%clk 0:00:28]}  Qe1 {[%clk 0:00:05]} 44. Qd5 {[%clk 0:00:27]}  Qh1+ {[%clk 0:00:05]} 45. Kg3 {[%clk 0:00:27]}  Qe1+ {[%clk 0:00:05]} 46. Kg4 {[%clk 0:00:28]}  Qe2 {[%clk 0:00:05]} 47. Kh3 {[%clk 0:00:27]}  Kg8 {[%clk 0:00:03]} 48. Qa8+ {[%clk 0:00:24]}  Kh7 {[%clk 0:00:03]} 49. Qe4+ {[%clk 0:00:24]}  Qxe4 {[%clk 0:00:03]} 50. fxe4 {[%clk 0:00:25]}  Kg6 {[%clk 0:00:04]} 51. Kg4 {[%clk 0:00:25]}  h5+ {[%clk 0:00:04]} 52. Kf4 {[%clk 0:00:25]}  Kh6 {[%clk 0:00:05]} 53. Kf5 {[%clk 0:00:25]}  Kh7 {[%clk 0:00:05]} 54. e6 {[%clk 0:00:25]}  fxe6+ {[%clk 0:00:05]} 55. Kxe6 {[%clk 0:00:26]}  Kg6 {[%clk 0:00:05]} 56. e5 {[%clk 0:00:27]} 1-0


[Site "https://www.chess.com"]

[Event "Titled Tuesday Blitz December 7 2021"]
[White "Reprintsev, Alexander"]
[Black "Goryachkina, Aleksandra"]
[WhiteFideId "14100541"]
[BlackFideId "4147103"]
[WhiteElo "2487"]
[BlackElo "2647"]
[Result "0-1"]
[Round "08"]
[TimeControl "180+1"]
[Date "2021.12.07"]
[WhiteClock "0:00:09"]
[BlackClock "0:00:11"]

1. e4 {[%clk 0:03:00]}  c5 {[%clk 0:02:59]} 2. b3 {[%clk 0:03:00]}  Nf6 {[%clk 0:02:58]} 3. e5 {[%clk 0:02:58]}  Nd5 {[%clk 0:02:56]} 4. Nc3 {[%clk 0:02:58]}  e6 {[%clk 0:02:53]} 5. Ne4 {[%clk 0:02:57]}  Nc6 {[%clk 0:02:50]} 6. Bb2 {[%clk 0:02:57]}  Qc7 {[%clk 0:02:48]} 7. Nf3 {[%clk 0:02:53]}  b6 {[%clk 0:02:42]} 8. Bb5 {[%clk 0:02:49]}  Bb7 {[%clk 0:02:42]} 9. Qe2 {[%clk 0:02:49]}  a6 {[%clk 0:02:39]} 10. Bc4 {[%clk 0:02:36]}  Nf4 {[%clk 0:02:35]} 11. Qf1 {[%clk 0:02:34]}  Nb4 {[%clk 0:02:33]} 12. Nd6+ {[%clk 0:02:28]}  Bxd6 {[%clk 0:02:28]} 13. exd6 {[%clk 0:02:28]}  Qxd6 {[%clk 0:02:27]} 14. O-O-O {[%clk 0:02:28]}  f6 {[%clk 0:02:12]} 15. a3 {[%clk 0:02:25]}  Nc6 {[%clk 0:02:11]} 16. d4 {[%clk 0:02:22]}  cxd4 {[%clk 0:02:08]} 17. Nxd4 {[%clk 0:02:22]}  Nxd4 {[%clk 0:02:07]} 18. Rxd4 {[%clk 0:02:22]}  Qc7 {[%clk 0:02:07]} 19. Qd1 {[%clk 0:01:59]}  b5 {[%clk 0:02:06]} 20. Bf1 {[%clk 0:01:55]}  Rc8 {[%clk 0:02:01]} 21. Kb1 {[%clk 0:01:54]}  Nd5 {[%clk 0:01:50]} 22. Rd3 {[%clk 0:01:51]}  O-O {[%clk 0:01:48]} 23. h4 {[%clk 0:01:48]}  a5 {[%clk 0:01:11]} 24. h5 {[%clk 0:01:48]}  b4 {[%clk 0:01:10]} 25. h6 {[%clk 0:01:43]}  g6 {[%clk 0:01:10]} 26. Rh4 {[%clk 0:01:29]}  bxa3 {[%clk 0:01:02]} 27. Bxa3 {[%clk 0:01:29]}  Rfd8 {[%clk 0:00:57]} 28. Bb2 {[%clk 0:01:21]}  Bc6 {[%clk 0:00:55]} 29. Rxd5 {[%clk 0:01:02]}  Bxd5 {[%clk 0:00:53]} 30. Bxf6 {[%clk 0:01:02]}  Rf8 {[%clk 0:00:50]} 31. Bb2 {[%clk 0:01:00]}  Rxf2 {[%clk 0:00:44]} 32. Bd3 {[%clk 0:00:57]}  Rxg2 {[%clk 0:00:25]} 33. Qe1 {[%clk 0:00:23]}  Qg3 {[%clk 0:00:21]} 34. Qe5 {[%clk 0:00:15]}  Qxe5 {[%clk 0:00:20]} 35. Bxe5 {[%clk 0:00:16]}  Bc6 {[%clk 0:00:15]} 36. Bc3 {[%clk 0:00:13]}  Ra8 {[%clk 0:00:14]} 37. Kb2 {[%clk 0:00:12]}  a4 {[%clk 0:00:13]} 38. b4 {[%clk 0:00:12]}  a3+ {[%clk 0:00:14]} 39. Ka2 {[%clk 0:00:10]}  Bd5+ {[%clk 0:00:14]} 40. Bc4 {[%clk 0:00:11]}  Rxc2+ {[%clk 0:00:14]} 41. Kb3 {[%clk 0:00:11]}  Rxc3+ {[%clk 0:00:10]} 42. Kxc3 {[%clk 0:00:11]}  Bxc4 {[%clk 0:00:11]} 43. Kxc4 {[%clk 0:00:09]}  a2 {[%clk 0:00:11]} 0-1


[Site "https://www.chess.com"]

[Event "Titled Tuesday Blitz December 7 2021"]
[White "Rustemov, Alexander"]
[Black "Materia, Marco"]
[WhiteFideId "4119002"]
[BlackFideId "45150451"]
[WhiteElo "2739"]
[BlackElo "2593"]
[Result "0-1"]
[Round "08"]
[TimeControl "180+1"]
[Date "2021.12.07"]
[WhiteClock "0:00:15"]
[BlackClock "0:00:49"]

1. d4 {[%clk 0:03:00]}  Nf6 {[%clk 0:02:59]} 2. c4 {[%clk 0:03:00]}  e6 {[%clk 0:02:59]} 3. Nf3 {[%clk 0:03:00]}  d5 {[%clk 0:02:58]} 4. Nc3 {[%clk 0:02:59]}  dxc4 {[%clk 0:02:57]} 5. e4 {[%clk 0:02:58]}  Bb4 {[%clk 0:02:56]} 6. Bg5 {[%clk 0:02:58]}  h6 {[%clk 0:02:54]} 7. Bxf6 {[%clk 0:02:57]}  Qxf6 {[%clk 0:02:55]} 8. Bxc4 {[%clk 0:02:57]}  O-O {[%clk 0:02:54]} 9. O-O {[%clk 0:02:57]}  c5 {[%clk 0:02:54]} 10. e5 {[%clk 0:02:57]}  Qd8 {[%clk 0:02:54]} 11. Ne4 {[%clk 0:02:57]}  cxd4 {[%clk 0:02:54]} 12. Qe2 {[%clk 0:02:57]}  Be7 {[%clk 0:02:51]} 13. Rfd1 {[%clk 0:02:55]}  Qc7 {[%clk 0:02:51]} 14. Rac1 {[%clk 0:02:51]}  Nc6 {[%clk 0:02:47]} 15. Ng3 {[%clk 0:02:38]}  Rd8 {[%clk 0:02:43]} 16. Bd3 {[%clk 0:02:35]}  Qa5 {[%clk 0:02:22]} 17. a3 {[%clk 0:02:22]}  Bf8 {[%clk 0:02:09]} 18. Qe4 {[%clk 0:02:16]}  g6 {[%clk 0:02:08]} 19. h4 {[%clk 0:02:16]}  Qd5 {[%clk 0:02:07]} 20. Qf4 {[%clk 0:02:10]}  Bg7 {[%clk 0:02:05]} 21. Re1 {[%clk 0:02:02]}  Bd7 {[%clk 0:01:59]} 22. b4 {[%clk 0:01:42]}  Be8 {[%clk 0:01:55]} 23. Bc4 {[%clk 0:01:18]}  Qd7 {[%clk 0:01:49]} 24. Ne4 {[%clk 0:01:17]}  Qc7 {[%clk 0:01:31]} 25. Bd3 {[%clk 0:00:58]}  a6 {[%clk 0:01:19]} 26. Nf6+ {[%clk 0:00:50]}  Bxf6 {[%clk 0:01:19]} 27. Qxf6 {[%clk 0:00:50]}  Qe7 {[%clk 0:01:18]} 28. Qf4 {[%clk 0:00:46]}  Kg7 {[%clk 0:01:17]} 29. Be4 {[%clk 0:00:42]}  Rac8 {[%clk 0:01:14]} 30. Rcd1 {[%clk 0:00:42]}  b5 {[%clk 0:01:04]} 31. Rd3 {[%clk 0:00:39]}  a5 {[%clk 0:01:00]} 32. bxa5 {[%clk 0:00:38]}  Nxa5 {[%clk 0:01:00]} 33. Red1 {[%clk 0:00:32]}  Nc4 {[%clk 0:00:56]} 34. Nxd4 {[%clk 0:00:23]}  Nb2 {[%clk 0:00:52]} 35. Nc6 {[%clk 0:00:15]}  Nxd3 {[%clk 0:00:49]} 0-1


[Site "https://www.chess.com"]